Cogmind - Beta 13 @@@ ROGUE MODE // 2024.04.21 @ 21:44:21 Player: lucasboxerhead Result: Destroyed by S-10 Pest with Light Assault Rifle Performance ------------- Evolutions (1) 500 Regions Visited (3) 600 Robots Destroyed (7) 35 Value Destroyed (274) 274 Prototype IDs (0) 0 Alien Tech Used (0) 0 Bonus (0) 0 TOTAL SCORE: 1409 Bonus ------- None Cogmind --------- Core Integrity 0/400 Matter 35/300 Energy 100/100 System Corruption 0% Temperature Cool (0) Movement Core (700) Ox13 Location -9/Materials Parts ------- > --- POWER (1) -------- (None) > --- PROPULSION (2) --- (None) > --- UTILITY (4) ------ High-capacity Storage Unit Improved Targeting Computer > --- WEAPON (2) ------- (None) > --- INVENTORY (20) --- Huge Storage Unit Improved Targeting Computer Medium Armor Plating Medium Armor Plating Medium Armor Plating Assault Rifle Assault Rifle Grenade Launcher Peak State ------------ > --- POWER ------------ (None) > --- PROPULSION ------- Light Treads Light Treads > --- UTILITY ---------- Small Storage Unit Improved Targeting Computer Improved Targeting Computer Medium Armor Plating > --- WEAPON ----------- Rocket Launcher Rocket Launcher > --- INVENTORY -------- Huge Storage Unit Improved Targeting Computer Medium Armor Plating Medium Armor Plating Medium Armor Plating Assault Rifle Assault Rifle Grenade Launcher [Rating: 14] Favorites ----------- Power Light Ion Engine Engine Light Ion Engine Propulsion Light Treads Treads Light Treads Leg Aluminum Leg Utility Improved Targeting Computer Storage Small Storage Unit Processor Improved Targeting Computer Protection Medium Armor Plating Weapon Assault Rifle Ballistic Gun Assault Rifle Launcher Grenade Launcher Build | -11 -10 -10 -9 ------- Run | Yrd Mat Min Mat Slots Evolved 2 | . . . 2 Power . | . . . . Propulsion . | . . . . Utility 2 | . . . 2 Weapon . | . . . . Parts Attached 17 | 10 2 . 5 Power 1 | 1 . . . Engine 1 | 1 . . . Core . | . . . . Reactor . | . . . . Propulsion 6 | 6 . . . Treads 4 | 4 . . . Leg 2 | 2 . . . Wheel . | . . . . Hover . | . . . . Flight . | . . . . Utility 5 | 1 1 . 3 Device . | . . . . Storage 2 | 1 . . 1 Processor 2 | . . . 2 Hackware . | . . . . Protection 1 | . 1 . . Artifact . | . . . . Weapon 5 | 2 1 . 2 Energy Gun . | . . . . Energy Cannon . | . . . . Ballistic Gun 2 | 2 . . . Ballistic Cannon . | . . . . Launcher 3 | . 1 . 2 Special Weapon . | . . . . Impact Weapon . | . . . . Slashing Weapon . | . . . . Piercing Weapon . | . . . . Special Melee Weapon . | . . . . Unidentified Prototypes . | . . . . Parts Lost 7 | . . 1 6 Power 1 | . . 1 . Propulsion 2 | . . . 2 Utility 2 | . . . 2 Weapon 2 | . . . 2 Highest Loss Streak 5 | . . 1 5 To Critical Strikes . | . . . . Average Slot Usage (%) 79 | . 90 98 60 Engine 7 | . 14 12 . Treads 21 | . 28 28 13 Storage 12 | . 14 14 11 Processor 7 | . . . 17 Protection 7 | . 5 14 4 Ballistic Gun 8 | . 14 14 1 Launcher 13 | . 13 14 12 Naked Turns . | . . . . Heaviest Build 55 | 12 20 20 55 Greatest Support 40 | 40 40 40 40 Greatest Overweight (x) 1 | . . . 1 Average Overweight (x) . | . . . . Largest Inventory Capacity 20 | 8 8 8 20 Average Capacity 11 | 6 8 8 16 Most Carried 8 | 4 8 8 8 Average Carried 6 | . 2 8 7 Final Capacity 20 | 8 8 8 20 Final Carried 8 | . 8 8 8 Class Distribution -------------------- 100% | Mutant Dominant Class ---------------- Mutant | -10/Materials Mutant | -10/Mines Mutant | -9/Materials Resources | -11 -10 -10 -9 ----------- Run | Yrd Mat Min Mat Matter Collected 315 | 197 65 53 . Remotely . | . . . . Salvage Created 150 | . 84 66 . Parts 9 | . 5 4 . Haulers Intercepted . | . . . . Recyclers Shooed 1 | . . 1 . Parts Field Recycled . | . . . . Retrieved Matter . | . . . . Parts Self-Destructed . | . . . . Prevented . | . . . . Kills | -11 -10 -10 -9 ------- Run | Yrd Mat Min Mat Combat Hostiles Destroyed 6 | . 2 4 . Guns 3 | . 1 2 . AOE 3 | . 1 2 . Classes Destroyed 2 | . 2 . . Worker 1 | . 1 . . Grunt 6 | . 2 4 . Best Kill Streak 3 | . 3 2 . Combat Bots Only 2 | . 2 2 . Max Kills in Single Turn 1 | . 1 1 . Gunslinging . | . . . . Exploded 1 | . 1 1 . Melee . | . . . . Uniques/NPCs Destroyed . | . . . . Combat | -11 -10 -10 -9 -------- Run | Yrd Mat Min Mat Hostile Shots Fired 173 | . 11 28 134 Missed 36 | . 6 10 20 Damage Taken 1266 | . 65 264 937 Core 458 | . 14 42 402 Absorbed by Shields . | . . . . Core Remaining (%) 88 | 100 . 77 . Volleys Fired 35 | . 14 19 2 Largest 2 | . 2 2 2 Hottest 66 | . 50 50 66 Shots Fired 45 | . 16 25 4 Gun 29 | . 14 15 . Cannon . | . . . . Launcher 16 | . 2 10 4 Special . | . . . . Kinetic 29 | . 14 15 . Thermal . | . . . . Explosive 16 | . 2 10 4 Electromagnetic . | . . . . Robot Hit Streak 9 | . 8 8 9 Robot Miss Streak 5 | . 5 3 2 Penetration Max . | . . . . Secondary Targets . | . . . . Shots Hit Robots 25 | . 9 14 2 Core Hits 19 | . 8 10 1 Critical Kills . | . . . . Critical Parts Destroyed 1 | . 1 . . Critical Strikes 1 | . 1 . . Destroy 1 | . 1 . . Melee Attacks . | . . . . Impact . | . . . . Slashing . | . . . . Piercing . | . . . . Sneak Attacks . | . . . . Combat Hostiles . | . . . . Follow-up Attacks . | . . . . Damage Inflicted 922 | 6 327 519 70 Guns 225 | . 126 99 . Cannons . | . . . . Explosions 688 | . 198 420 70 Melee . | . . . . Ramming 9 | 6 3 . . Kinetic 225 | . 126 99 . Thermal . | . . . . Explosive 688 | . 198 420 70 Electromagnetic . | . . . . Impact . | . . . . Slashing . | . . . . Piercing . | . . . . Highest Corruption . | . . . . Average Corruption . | . . . . Corruption Purged . | . . . . Corruption Blocked . | . . . . Overload Shots . | . . . . Overflow Damage 30 | . 3 21 6 Projectiles . | . . . . Explosions 30 | . 3 21 6 Melee . | . . . . Knockbacks 1 | 1 . . . Impact 1 | 1 . . . Kinetic . | . . . . Secondary . | . . . . Self-Inflicted Damage 40 | . . 40 . Shots 1 | . . 1 . Rammed 2 | 1 1 . . Targets Rammed 2 | 1 1 . . Kicked . | . . . . Crushed . | . . . . Highest Temperature 29 | . 7 29 . Average Temperature 12 | . 5 13 . Received Heat Transfer 180 | . 42 129 9 Siege Activations . | . . . . Robots Corrupted . | . . . . Combat Hostiles . | . . . . Parts Fried . | . . . . Impact Corruptions . | . . . . Robots Melted . | . . . . Combat Hostiles . | . . . . Parts Melted . | . . . . Heat Transferred . | . . . . Parts Sabotaged . | . . . . Parts Stolen . | . . . . Parts Stripped . | . . . . Power Chain Reactions . | . . . . Alert | -11 -10 -10 -9 ------- Run | Yrd Mat Min Mat Peak Influence 203 | . 100 203 134 Initial 78 | . . 39 78 Average 75 | . 69 80 97 Maximum Alert Level 1 | . . 1 . Low Security (%) 97 | 100 100 91 100 Level 1 2 | . . 8 . Level 2 . | . . . . Level 3 . | . . . . Level 4 . | . . . . Level 5 . | . . . . High Security . | . . . . Max Security . | . . . . Squads Dispatched . | . . . . Investigation . | . . . . Extermination . | . . . . Reinforcement . | . . . . Assault . | . . . . Garrison . | . . . . Intercept . | . . . . Searches Triggered . | . . . . Construction Impeded . | . . . . Haulers Reinforced . | . . . . Active Scanning Responses . | . . . . Cargo Convoy Interrupts . | . . . . Stealth | -11 -10 -10 -9 --------- Run | Yrd Mat Min Mat Distress Signals . | . . . . Communications Jammed . | . . . . Distress Signals . | . . . . Times Spotted 13 | . 4 4 5 Peak Tracking Total 5 | . 2 2 5 Tactical Retreats . | . . . . Traps | -11 -10 -10 -9 ------- Run | Yrd Mat Min Mat Traps Triggered . | . . . . Indirectly . | . . . . Trap Hack Attempts . | . . . . Triggered . | . . . . Disarmed . | . . . . Reprogrammed . | . . . . Reused . | . . . . Traps Extracted . | . . . . Installed . | . . . . Triggered . | . . . . Machines | -11 -10 -10 -9 ---------- Run | Yrd Mat Min Mat Machines Disabled 3 | . . 2 1 Max in Single Turn 1 | . . 1 1 Machines Repaired . | . . . . Machines Dismantled . | . . . . Machines Sabotaged . | . . . . Overloaded Fab Kills . | . . . . Hacking | -11 -10 -10 -9 --------- Run | Yrd Mat Min Mat Machines Accessed 1 | . 1 . . Terminals 1 | . 1 . . Fabricators . | . . . . Repair Stations . | . . . . Recycling Units . | . . . . Scanalyzers . | . . . . Garrison Access . | . . . . Total Hacks 3 | . 3 . . Successful . | . . . . Failed 3 | . 3 . . Catastrophic . | . . . . Database Lockouts . | . . . . Manual . | . . . . Terminals 3 | . 3 . . Fabricators . | . . . . Repair Stations . | . . . . Recycling Units . | . . . . Scanalyzers . | . . . . Garrison Access . | . . . . Terminal Hacks . | . . . . Fabricator Hacks . | . . . . Repair Station Hacks . | . . . . Recycling Unit Hacks . | . . . . Scanalyzer . | . . . . Garrison Access Hacks . | . . . . Unauthorized Hacks . | . . . . Terminals . | . . . . Fabricators . | . . . . Repair Stations . | . . . . Recycling Units . | . . . . Scanalyzers . | . . . . Garrison Access . | . . . . Data Cores Recovered . | . . . . Used . | . . . . Hacking Detections 1 | . 1 . . Full Trace Events . | . . . . Feedback Events . | . . . . Feedback Blocked . | . . . . Robot Schematics Acquired . | . . . . Robots Built . | . . . . Authchips . | . . . . Time . | . . . . Total Robot Build Rating . | . . . . Part Schematics Acquired . | . . . . Parts Built . | . . . . Authchips . | . . . . Time . | . . . . Total Part Build Rating . | . . . . Parts Repaired . | . . . . Time . | . . . . Parts Recycled . | . . . . Recycled Matter . | . . . . Retrieved Matter . | . . . . Retrieved Components . | . . . . Parts Scanalyzed . | . . . . Part Schematics Acquired . | . . . . Parts Damaged . | . . . . Bothacking | -11 -10 -10 -9 ------------ Run | Yrd Mat Min Mat Used RIF Installer . | . . . . Robots Hacked . | . . . . Non-combat . | . . . . Combat . | . . . . Robot Hacks Applied . | . . . . Relay Couplers Released . | . . . . Fabnet Peak Effective % . | . . . . Robots Rewired . | . . . . Allies Hacked . | . . . . Hacks Repelled . | . . . . Allies | -11 -10 -10 -9 -------- Run | Yrd Mat Min Mat Total Allies . | . . . . Largest Group . | . . . . Highest-Rated Group . | . . . . Highest-Rated Ally . | . . . . Total Orders . | . . . . Ally Attacks . | . . . . Total Damage . | . . . . Kills . | . . . . Allies Corrupted . | . . . . Allies Melted . | . . . . Intel | -11 -10 -10 -9 ------- Run | Yrd Mat Min Mat Robot Analysis Total . | . . . . Derelict Logs Recovered . | . . . . Drone Launches . | . . . . Drone Recoveries . | . . . . Exploration | -11 -10 -10 -9 ------------- Run | Yrd Mat Min Mat Turns Passed 912 | 110 179 260 363 Spaces Moved 310 | 68 86 86 70 Core 5 | 5 . . . Treads 278 | 36 86 86 70 Legs 27 | 27 . . . Wheels . | . . . . Hover . | . . . . Flight . | . . . . Fastest Speed 50 | 50 160 160 160 Average Speed 159 | 136 160 160 181 Slowest Speed 240 | 160 160 160 240 Overloaded Moves . | . . . . Propulsion Burnouts . | . . . . Robots Hopped . | . . . . Cave-ins Triggered . | . . . . Exploration Rate (%) 16 | 6 29 20 12 Regions Visited 3 Branch Regions 1 Pre-discovered Areas . | . . . . Known Exits Taken . | . . . . Unknown Exits Taken 3 | 1 1 1 . Scrap Searched . | . . . . Spaces Dug . | . . . . Terrain Destroyed 103 | . 13 64 26 Melee . | . . . . Projectile . | . . . . AOE 103 | . 13 64 26 Terrain Rammed . | . . . . Walls Destroyed . | . . . . Machines Disabled . | . . . . Actions | -11 -10 -10 -9 --------- Run | Yrd Mat Min Mat Total 680 | 84 110 184 302 Wait 302 | . . 80 222 Move 308 | 68 85 85 70 Hop . | . . . . Pick Up 7 | . 7 . . Fast Attach 12 | 8 2 . 2 Attach 4 | 2 . . 2 Detach 7 | 4 1 . 2 Swap 1 | . . . 1 Drop 3 | 2 . . 1 Fire 35 | . 14 19 2 Melee . | . . . . Ram . | . . . . Kick . | . . . . Crush 1 | . 1 . . Escape Stasis . | . . . . Rewire . | . . . . Trap . | . . . . Miscellaneous . | . . . . Route ------- -11/Scrapyard -10/Materials -10/Mines -9/Materials History --------- Turn | Location | Event 29 | -11/Scrapyard | Discovered new exit (range 14) 111 | -11/Scrapyard | Entered Materials 280 | -10/Materials | Discovered new exit (range 7) 290 | -10/Materials | Entered Mines 305 | -10/Mines | Build established: Mutant 522 | -10/Mines | Discovered new exit (range 13) 550 | -10/Mines | Entered Materials 550 | -9/Materials | Evolved 2 slots: Utility x2 836 | -9/Materials | Lost 5 parts (2n1u2w) 851 | -9/Materials | Core integrity fell below 50% 891 | -9/Materials | Core integrity fell below 20% 913 | -9/Materials | Destroyed by S-10 Pest with Light Assault Rifle Last Messages --------------- 00657_ U-05 Engineer lays Concrete. 00663_ K-01 Serf collects debris. 00663_ U-05 Engineer lays Concrete. 00665_ U-05 Engineer builds a Wall. 00666_ The unstable cave ceiling collapses. 00666_ K-01 Serf collects debris. 00670_ U-05 Engineer lays Concrete. 00672_ U-05 Engineer builds a Wall. 00677_ U-05 Engineer lays Concrete. 00679_ U-05 Engineer builds a Wall. 00680_ The unstable cave ceiling collapses. 00683_ U-05 Engineer lays Concrete. 00685_ U-05 Engineer builds a Wall. 00697_ Med. Armor Plating destroyed. 00700_ U-05 Engineer lays Concrete. 00711_ U-05 Engineer builds a Wall. 00749_ Lgt. Treads destroyed. 00778_ Imp. Targeting Computer destroyed. 00785_ Rocket Launcher destroyed. 00805_ Lgt. Treads destroyed. Map ----- +----------------------------------------------------+ | ?????????????????????????????????????????????????? | | ?????????????????????????????????????????????????? | | ?????????????????????????????????????????????????? | | ?????????????????????????????????????????????????? | | ?????????????????????????????????????????????????? | | ?????????????????????????????????????????????????? | | ?????????????????????????????????????????????????? | | ?????????????????????????????????????????????????? | | ????????????????????? ?????????????????????????? | | ????????????????????? ?????????????????????????? | | ????????????????????? ?????????????????????????? | | ????????????????????# #????????????????????????? | | ????????????????????# #????????????????????????? | | ????????????????????# #????????????????????????? | | ????????????????????# #????????????????????????? | | ????????????????????# #????????????????????????? | | ????????????????????# #????????????????????????? | | ????????????????????# #????????????????????????? | | ????????????????????# #????????????????????????? | | ????????????????????# #????????????????????????? | | ????????????????????# #????????????????????????? | | ????????????????????# #????????????????????????? | | ???????????????????## ##???????????????????????? | | ??????????????????### ##???????????????????????? | | ?????????????###### ###??????????????????????? | | ?????????????# /! # #@#??????????????????????? | | ?????????????# /! #s#??????????????????????? | | ?????????????# / s###?????????????????????? | | ?????????????# # ########??????????????? | | ?????????????# #??????????????? | | ?????????????# # #??????????????? | | ?????????????###### #??????????????? | | ?????????????# "" #??????????????? | | ?????????????# "T" #??????????????? | | ?????????????# #??????????????? | | ?????????????+ #??????????????? | | ?????????????# # #??????????????? | | ?????????????# """ ###########??????????????? | | ?????????##### """ #????????????????????????? | | ?????????# """ ############?????????????? | | ?????????# ## #?????????????? | | ?????????# ## #?????????????? | | ?????????#### """ # #?????????????? | | ????????????# """ # """ #?????????????? | | ????????????# """ + """"" #?????????????? | | ????????????# # """"" #?????????????? | | ????????????# # """"" #?????????????? | | ????????????# ########## """ #?????????????? | | ????????????# #????????###########?????????????? | | ????????????# +????????????????????????????????? | +----------------------------------------------------+ Best States ------------- Heat Dissipation 28 Energy Generation 10 Energy Capacity 125 Matter Stores 200 Matter Capacity 300 Sight Range 16 Terrain Scan Density 10 Armor Coverage 225 Evasion (%) 55 Targeting Accuracy 12 Recoil Reduction 2 Item Schematics ----------------- None Robot Schematics ------------------ None Fabricated ------------ Nothing Alien Tech Used ----------------- None Achievements -------------- None Challenges ------------ None Game ------ Seed MobileDecoyTendrils Manual? 0 Play Time 00:06:28 Cumulative 15.0 hours Start 2024.04.21 @ 21:37:55 End 2024.04.21 @ 21:44:21 Sessions 1 Manual Loads 0 Difficulty Rogue Special Mode None Game No. 57 Rogue 54 Adventurer 3 Explorer 0 Win Type - Total 0 Types 0/0/0/0/0/0/0/0/0 Lore% 12 Gallery% 20 Achievement% 17 Wizard Run 0 Options --------- Layout 1 ASCII 0 Keyboard 1 Movement Numpad Keybinds 0 Fullscreen 2 Font 24/Smallcaps Map View 50x35 Zoom Use 0% Tactical HUD 1 Map Filters NONE Filters NONE Steam 1 RUN: 76e2f0d3-5104-400a-ae47-81e2e9ad9b6c